[Event "Eurasia Open Cup 2019"]
[Site "Ekaterinburg"]
[Date "2019.08.06"]
[Round "6.8"]
[White "Kabanov, Nikolai"]
[Black "Moiseenko, Vadim"]
[Result "1/2-1/2"]
[ECO "B51"]
[WhiteElo "2450"]
[BlackElo "2523"]
[Annotator "ChessBase"]
[PlyCount "121"]
[EventDate "2019.07.31"]
[EventType "swiss"]
[EventCountry "RUS"]
[SourceTitle "playchess.com"]
[Source "ChessBase"]
[SourceQuality "1"]
[TimeControl "5400+30"]

1. e4 {[%emt 0:00:00]} c5 {[%emt 0:07:58]} 2. Nf3 {[%emt 0:00:00]} d6 {[%emt 0:00:04]} 3. Bb5+ {[%emt 0:00:00]} Nd7 {[%emt 0:00:31]} 4. d4 {[%emt 0:00:22]} cxd4 {[%emt 0:00:04]} 5. Qxd4 {[%emt 0:00:06]} a6 {[%emt 0:00:04]} 6. Bxd7+ {[%emt 0:00:43]} Qxd7 {[%emt 0:00:21]} 7. Nc3 {[%emt 0:03:35]} e5 {[%emt 0:05:04]} 8. Qd3 {[%emt 0:00:48]} Qc6 {[%emt 0:00:04]} 9. O-O {[%emt 0:06:49]} Be6 {[%emt 0:00:12]} 10. Rd1 {[%emt 0:00:40]} Bc4 {[%emt 0:01:06]} 11. Qe3 {[%emt 0:02:26]} Rc8 {[%emt 0:01:40]} 12. Nd2 {[%emt 0:02:15]} Be6 {[%emt 0:01:06]} 13. Nf1 {[%emt 0:00:31]} Nf6 {[%emt 0:00:00]} 14. h3 {[%emt 0:01:06]} Be7 {[%emt 0:01:03]} 15. Qf3 {[%emt 0:00:16]} O-O {[%emt 0:05:19]} 16. Bg5 {[%emt 0:03:56]} b5 {[%emt 0:02:15]} 17. a3 {[%emt 0:00:44]} Kh8 {[%emt 0:05:37]} 18. Bxf6 {[%emt 0:04:44]} Bxf6 {[%emt 0:00:04]} 19. Ne3 {[%emt 0:00:12]} Bg5 {[%emt 0:02:51]} 20. Nf5 {[%emt 0:41:24]} Rcd8 {[%emt 0:13:51]} 21. Qg3 {[%emt 0:11:07]} Bf6 {[%emt 0:10:13]} 22. Qf3 {[%emt 0:00:00]} Bg5 {[%emt 0:03:11]} 23. Qg3 {[%emt 0:00:00]} Bf6 {[%emt 0:00:09]} 24. Ne3 {[%emt 0:00:49]} g6 {[%emt 0:00:33]} 25. Ncd5 {[%emt 0:00:13]} Bg7 {[%emt 0:00:07]} 26. Qh4 {[%emt 0:00:34]} f5 {[%emt 0:02:20]} 27. exf5 {[%emt 0:09:20]} gxf5 {[%emt 0:00:33]} 28. f4 {[%emt 0:00:00]} Bxd5 {[%emt 0:06:34]} 29. Nxd5 {[%emt 0:00:33]} Qxc2 {[%emt 0:00:00]} 30. Rac1 {[%emt 0:00:40]} Qb3 {[%emt 0:01:19]} 31. Rd2 {[%emt 0:01:39]} Rc8 {[%emt 0:14:43]} 32. Rxc8 {[%emt 0:03:02]} Rxc8 {[%emt 0:00:01]} 33. Nf6 {[%emt 0:00:58]} Qe3+ {[%emt 0:02:03]} 34. Kh2 {[%emt 0:00:00]} Qxf4+ {[%emt 0:02:59]} 35. Qxf4 {[%emt 0:00:00]} exf4 {[%emt 0:00:36]} 36. Rxd6 {[%emt 0:00:00]} a5 {[%emt 0:01:23]} 37. b4 {[%emt 0:01:21]} axb4 {[%emt 0:01:45]} 38. axb4 {[%emt 0:00:02]} Bxf6 {[%emt 0:00:15]} 39. Rxf6 {[%emt 0:00:02]} Rc4 {[%emt 0:00:33]} 40. Rxf5 {[%emt 0:00:08]} Rxb4 {[%emt 0:00:03]} 41. h4 {[%emt 0:01:05]} f3 {[%emt 0:02:37]} 42. gxf3 {[%emt 0:00:07]} Rxh4+ {[%emt 0:00:00]} 43. Kg3 {[%emt 0:00:06]} Rb4 {[%emt 0:00:00]} 44. Rf7 {[%emt 0:01:48]} Rc4 {[%emt 0:00:49]} 45. Rb7 {[%emt 0:00:13]} Rc5 {[%emt 0:00:12]} 46. f4 {[%emt 0:04:23]} h5 {[%emt 0:00:40]} 47. Kf3 {[%emt 0:00:00]} Kg8 {[%emt 0:00:00]} 48. Ke4 {[%emt 0:00:26]} h4 {[%emt 0:03:48]} 49. Kf3 {[%emt 0:00:03]} h3 {[%emt 0:00:09]} 50. Kg3 {[%emt 0:00:29]} Rc3+ {[%emt 0:00:55]} 51. Kh2 {[%emt 0:00:03]} Rb3 {[%emt 0:00:02]} 52. f5 {[%emt 0:01:39]} b4 {[%emt 0:00:51]} 53. f6 {[%emt 0:00:41]} Kf8 {[%emt 0:00:05]} 54. Kh1 {[%emt 0:00:32]} Rb2 {[%emt 0:00:37]} 55. Kg1 {[%emt 0:01:18]} Rb1+ {[%emt 0:05:59]} 56. Kh2 {[%emt 0:00:08]} Rb3 {[%emt 0:00:01]} 57. Kh1 {[%emt 0:00:46]} Rb2 {[%emt 0:00:15]} 58. Kg1 {[%emt 0:00:08]} b3 {[%emt 0:00:19]} 59. Kh1 {[%emt 0:00:11]} h2 {[%emt 0:00:45]} 60. f7 {[%emt 0:00:28]} Kg7 {[%emt 0:00:07]} 61. f8=Q+ {[%emt 0:00:24]} 1/2-1/2

[Event "Eurasia Open Cup 2019"]
[Site "Ekaterinburg"]
[Date "2019.08.06"]
[Round "6.9"]
[White "Khusenkhojaev, Muhammad"]
[Black "Vokhidov, Shamsiddin"]
[Result "1-0"]
[ECO "E11"]
[WhiteElo "2441"]
[BlackElo "2515"]
[Annotator "ChessBase"]
[PlyCount "139"]
[EventDate "2019.07.31"]
[EventType "swiss"]
[EventCountry "RUS"]
[SourceTitle "playchess.com"]
[Source "ChessBase"]
[SourceQuality "1"]
[TimeControl "5400+30"]

1. d4 {[%emt 0:00:08]} Nf6 {[%emt 0:00:00]} 2. c4 {[%emt 0:00:09]} e6 {[%emt 0:00:00]} 3. g3 {[%emt 0:00:13]} d5 {[%emt 0:02:21]} 4. Nf3 {[%emt 0:00:32]} Bb4+ {[%emt 0:04:58]} 5. Bd2 {[%emt 0:00:36]} Be7 {[%emt 0:00:05]} 6. Bg2 {[%emt 0:00:12]} c6 {[%emt 0:00:08]} 7. Qc2 {[%emt 0:00:48]} O-O {[%emt 0:02:28]} 8. O-O {[%emt 0:00:06]} Nbd7 {[%emt 0:00:10]} 9. Rd1 {[%emt 0:00:38]} b6 {[%emt 0:02:12]} 10. b3 {[%emt 0:00:47]} Bb7 {[%emt 0:02:22]} 11. Nc3 {[%emt 0:00:49]} Rc8 {[%emt 0:01:52]} 12. e4 {[%emt 0:00:55]} c5 {[%emt 0:01:23]} 13. exd5 {[%emt 0:02:33]} exd5 {[%emt 0:00:21]} 14. Bf4 {[%emt 0:05:08]} dxc4 {[%emt 0:07:40]} 15. d5 {[%emt 0:00:22]} Nh5 {[%emt 0:04:07]} 16. Be3 {[%emt 0:01:10]} Bd6 {[%emt 0:01:43]} 17. bxc4 {[%emt 0:00:39]} Nhf6 {[%emt 0:00:06]} 18. Bh3 {[%emt 0:04:31]} h6 {[%emt 0:02:46]} 19. a4 {[%emt 0:01:12]} Ba6 {[%emt 0:08:38]} 20. Nb5 {[%emt 0:01:30]} Bb8 {[%emt 0:01:19]} 21. Bc1 {[%emt 0:00:00]} Bb7 {[%emt 0:04:05]} 22. Bb2 {[%emt 0:08:14]} a6 {[%emt 0:00:06]} 23. Nc3 {[%emt 0:02:02]} Re8 {[%emt 0:03:24]} 24. a5 {[%emt 0:00:21]} Bd6 {[%emt 0:01:08]} 25. axb6 {[%emt 0:04:13]} Rb8 {[%emt 0:02:52]} 26. Na4 {[%emt 0:02:10]} Nxb6 {[%emt 0:02:51]} 27. Nxb6 {[%emt 0:01:44]} Qxb6 {[%emt 0:00:11]} 28. Bxf6 {[%emt 0:03:51]} gxf6 {[%emt 0:00:02]} 29. Rab1 {[%emt 0:01:03]} Qc7 {[%emt 0:02:39]} 30. Nh4 {[%emt 0:02:23]} Bf8 {[%emt 0:00:08]} 31. Nf5 {[%emt 0:12:43]} Qe5 {[%emt 0:06:48]} 32. Qa4 {[%emt 0:04:56]} Qe4 {[%emt 0:03:30]} 33. Ne3 {[%emt 0:02:35]} Red8 {[%emt 0:03:27]} 34. Rb6 {[%emt 0:02:56]} Rxd5 {[%emt 0:05:21]} 35. Bg2 {[%emt 0:05:45]} Qe8 {[%emt 0:00:36]} 36. Ra1 {[%emt 0:05:35]} Qxa4 {[%emt 0:02:37]} 37. Rxa4 {[%emt 0:00:01]} Rd7 {[%emt 0:00:14]} 38. Ra1 {[%emt 0:01:25]} Kg7 {[%emt 0:04:23]} 39. Rab1 {[%emt 0:01:13]} Bxg2 {[%emt 0:00:07]} 40. Rxb8 {[%emt 0:00:23]} Be4 {[%emt 0:00:06]} 41. Rd1 {[%emt 0:01:58]} Rxd1+ {[%emt 0:01:02]} 42. Nxd1 {[%emt 0:00:00]} a5 {[%emt 0:00:05]} 43. Ne3 {[%emt 0:02:58]} a4 {[%emt 0:03:14]} 44. Rb6 {[%emt 0:02:21]} f5 {[%emt 0:00:19]} 45. Ra6 {[%emt 0:00:57]} f4 {[%emt 0:00:19]} 46. gxf4 {[%emt 0:00:00]} Be7 {[%emt 0:00:06]} 47. f3 {[%emt 0:02:46]} Bd3 {[%emt 0:00:31]} 48. Rxa4 {[%emt 0:00:10]} Bf6 {[%emt 0:00:11]} 49. Ra3 {[%emt 0:01:00]} Bh7 {[%emt 0:00:18]} 50. Kf2 {[%emt 0:00:11]} Bd4 {[%emt 0:00:47]} 51. Ke2 {[%emt 0:00:09]} h5 {[%emt 0:02:56]} 52. Ra7 {[%emt 0:02:25]} h4 {[%emt 0:00:33]} 53. Ng4 {[%emt 0:01:52]} h3 {[%emt 0:01:28]} 54. Ne5 {[%emt 0:00:00]} Bg8 {[%emt 0:00:02]} 55. Rc7 {[%emt 0:02:43]} Bg1 {[%emt 0:01:40]} 56. Ng4 {[%emt 0:01:00]} Kg6 {[%emt 0:01:21]} 57. f5+ {[%emt 0:01:28]} Kg5 {[%emt 0:00:00]} 58. Nf2 {[%emt 0:01:24]} Kxf5 {[%emt 0:00:13]} 59. Rxc5+ {[%emt 0:00:12]} Kg6 {[%emt 0:00:10]} 60. Rc8 {[%emt 0:00:39]} Kg7 {[%emt 0:00:03]} 61. Nxh3 {[%emt 0:00:15]} Bxh2 {[%emt 0:00:08]} 62. f4 {[%emt 0:01:47]} Bh7 {[%emt 0:01:56]} 63. Rc5 {[%emt 0:00:30]} Be4 {[%emt 0:00:20]} 64. Ke3 {[%emt 0:02:18]} f5 {[%emt 0:00:45]} 65. Nf2 {[%emt 0:02:04]} Bc2 {[%emt 0:00:37]} 66. Rc8 {[%emt 0:00:00]} Bg3 {[%emt 0:01:16]} 67. c5 {[%emt 0:00:29]} Kf7 {[%emt 0:01:10]} 68. Rh8 {[%emt 0:00:38]} Ke6 {[%emt 0:01:25]} 69. Rh3 {[%emt 0:00:09]} Bxf2+ {[%emt 0:00:00]} 70. Kxf2 {[%emt 0:00:05]} 1-0

[Event "Eurasia Open Cup 2019"]
[Site "Ekaterinburg"]
[Date "2019.08.06"]
[Round "6.10"]
[White "Shubin, Kirill"]
[Black "Bocharov, Dmitry"]
[Result "1-0"]
[ECO "B31"]
[WhiteElo "2426"]
[BlackElo "2506"]
[Annotator "ChessBase"]
[PlyCount "83"]
[EventDate "2019.07.31"]
[EventType "swiss"]
[EventCountry "RUS"]
[SourceTitle "playchess.com"]
[Source "ChessBase"]
[SourceQuality "1"]
[TimeControl "5400+30"]

1. e4 {[%emt 0:00:00]} c5 {[%emt 0:00:00]} 2. Nf3 {[%emt 0:00:00]} Nc6 {[%emt 0:00:00]} 3. Bb5 {[%emt 0:00:00]} g6 {[%emt 0:00:13]} 4. Bxc6 {[%emt 0:00:00]} dxc6 {[%emt 0:00:08]} 5. d3 {[%emt 0:00:00]} Bg7 {[%emt 0:00:23]} 6. h3 {[%emt 0:01:02]} Nf6 {[%emt 0:01:00]} 7. a4 {[%emt 0:00:00]} Nd7 {[%emt 0:05:54]} 8. a5 {[%emt 0:00:00]} O-O {[%emt 0:00:56]} 9. O-O {[%emt 0:03:17]} Rb8 {[%emt 0:08:22]} 10. Bf4 {[%emt 0:10:00]} e5 {[%emt 0:00:24]} 11. Be3 {[%emt 0:00:00]} b6 {[%emt 0:06:40]} 12. axb6 {[%emt 0:00:36]} axb6 {[%emt 0:00:00]} 13. Nbd2 {[%emt 0:00:19]} Re8 {[%emt 0:05:11]} 14. Nc4 {[%emt 0:02:19]} Qc7 {[%emt 0:03:01]} 15. Qd2 {[%emt 0:05:08]} Nf8 {[%emt 0:09:07]} 16. Bh6 {[%emt 0:09:07]} Bh8 {[%emt 0:03:02]} 17. Ra3 {[%emt 0:09:41]} Ne6 {[%emt 0:02:27]} 18. Rfa1 {[%emt 0:04:09]} b5 {[%emt 0:03:17]} 19. Ra7 {[%emt 0:02:27]} Rb7 {[%emt 0:00:10]} 20. Rxb7 {[%emt 0:00:17]} Bxb7 {[%emt 0:00:03]} 21. Ne3 {[%emt 0:00:20]} Ra8 {[%emt 0:07:10]} 22. Rxa8+ {[%emt 0:01:32]} Bxa8 {[%emt 0:00:02]} 23. Ng4 {[%emt 0:02:02]} f6 {[%emt 0:02:28]} 24. Qc3 {[%emt 0:01:47]} Bb7 {[%emt 0:03:40]} 25. b4 {[%emt 0:06:12]} cxb4 {[%emt 0:03:11]} 26. Qxb4 {[%emt 0:00:05]} Kf7 {[%emt 0:04:34]} 27. Qb3 {[%emt 0:06:46]} Bc8 {[%emt 0:01:07]} 28. d4 {[%emt 0:03:50]} exd4 {[%emt 0:02:42]} 29. Nxd4 {[%emt 0:00:38]} Qd6 {[%emt 0:02:29]} 30. Nf3 {[%emt 0:03:23]} Bd7 {[%emt 0:04:15]} 31. e5 {[%emt 0:07:51]} fxe5 {[%emt 0:04:23]} 32. Ng5+ {[%emt 0:00:06]} Ke8 {[%emt 0:07:40]} 33. Nxh7 {[%emt 0:01:57]} Kd8 {[%emt 0:04:22]} 34. Ng5 {[%emt 0:02:16]} Kc7 {[%emt 0:05:08]} 35. Nf7 {[%emt 0:01:32]} Qd1+ {[%emt 0:00:46]} 36. Kh2 {[%emt 0:00:02]} Nd4 {[%emt 0:00:09]} 37. Qa3 {[%emt 0:01:29]} Ne2 {[%emt 0:01:04]} 38. Qa7+ {[%emt 0:01:13]} Kc8 {[%emt 0:00:01]} 39. f3 {[%emt 0:02:07]} Bxg4 {[%emt 0:01:16]} 40. Bf8 {[%emt 0:00:26]} Bf6 {[%emt 0:01:05]} 41. Nd6+ {[%emt 0:00:08]} Kd8 {[%emt 0:00:48]} 42. Qb8+ {[%emt 0:00:04]} 1-0

[Event "Eurasia Open Cup 2019"]
[Site "Ekaterinburg"]
[Date "2019.08.06"]
[Round "6.11"]
[White "Burmakin, Vladimir"]
[Black "Popov, Mikhail"]
[Result "1/2-1/2"]
[ECO "A43"]
[WhiteElo "2506"]
[BlackElo "2397"]
[Annotator "ChessBase"]
[PlyCount "82"]
[EventDate "2019.07.31"]
[EventType "swiss"]
[EventCountry "RUS"]
[SourceTitle "playchess.com"]
[Source "ChessBase"]
[SourceQuality "1"]
[TimeControl "5400+30"]

1. d4 {[%emt 0:00:00]} Nf6 {[%emt 0:00:00]} 2. Nf3 {[%emt 0:00:00]} g6 {[%emt 0:00:00]} 3. g3 {[%emt 0:00:00]} Bg7 {[%emt 0:00:00]} 4. Bg2 {[%emt 0:00:00]} c5 {[%emt 0:01:18]} 5. d5 {[%emt 0:00:29]} O-O {[%emt 0:02:16]} 6. O-O {[%emt 0:01:20]} d6 {[%emt 0:00:57]} 7. Nc3 {[%emt 0:00:10]} Na6 {[%emt 0:04:15]} 8. e4 {[%emt 0:00:23]} Nc7 {[%emt 0:01:58]} 9. a4 {[%emt 0:00:19]} a6 {[%emt 0:02:31]} 10. Re1 {[%emt 0:00:35]} Bg4 {[%emt 0:05:14]} 11. h3 {[%emt 0:02:30]} Bxf3 {[%emt 0:01:32]} 12. Qxf3 {[%emt 0:00:00]} b5 {[%emt 0:00:19]} 13. Qe2 {[%emt 0:19:52]} Rb8 {[%emt 0:03:46]} 14. Kh2 {[%emt 0:08:06]} Nd7 {[%emt 0:03:17]} 15. f4 {[%emt 0:00:07]} Nb6 {[%emt 0:09:07]} 16. axb5 {[%emt 0:04:55]} axb5 {[%emt 0:02:21]} 17. Nxb5 {[%emt 0:00:40]} Nxb5 {[%emt 0:00:17]} 18. Qxb5 {[%emt 0:00:00]} Nxd5 {[%emt 0:00:45]} 19. Qe2 {[%emt 0:00:15]} Nb6 {[%emt 0:09:16]} 20. e5 {[%emt 0:00:00]} dxe5 {[%emt 0:02:16]} 21. fxe5 {[%emt 0:00:23]} e6 {[%emt 0:01:19]} 22. Ra7 {[%emt 0:03:56]} Nd5 {[%emt 0:03:47]} 23. Rd1 {[%emt 0:08:41]} Rb6 {[%emt 0:10:39]} 24. c4 {[%emt 0:04:12]} Qb8 {[%emt 0:00:31]} 25. Ra5 {[%emt 0:00:00]} Nb4 {[%emt 0:03:33]} 26. Rxc5 {[%emt 0:02:43]} Na2 {[%emt 0:00:50]} 27. Bf4 {[%emt 0:03:58]} Rxb2 {[%emt 0:02:40]} 28. Qf3 {[%emt 0:05:07]} Qb6 {[%emt 0:05:56]} 29. Qa3 {[%emt 0:08:10]} Nc3 {[%emt 0:02:42]} 30. Rd2 {[%emt 0:05:03]} Rxd2 {[%emt 0:03:51]} 31. Bxd2 {[%emt 0:00:01]} Nb1 {[%emt 0:00:23]} 32. Qa5 {[%emt 0:03:09]} Qb2 {[%emt 0:03:07]} 33. Bb4 {[%emt 0:00:00]} Bh6 {[%emt 0:02:05]} 34. h4 {[%emt 0:04:17]} Nd2 {[%emt 0:01:58]} 35. Qa3 {[%emt 0:00:50]} Nf3+ {[%emt 0:01:07]} 36. Kh3 {[%emt 0:01:32]} Ng1+ {[%emt 0:00:00]} 37. Kh2 {[%emt 0:00:49]} Qf2 {[%emt 0:04:23]} 38. Ra5 {[%emt 0:02:20]} Be3 {[%emt 0:00:53]} 39. Ra8 {[%emt 0:03:25]} Nf3+ {[%emt 0:00:52]} 40. Kh3 {[%emt 0:00:32]} Ng1+ {[%emt 0:00:00]} 41. Kh2 {[%emt 0:00:00]} Nf3+ {[%emt 0:00:36]} 1/2-1/2

[Event "Eurasia Open Cup 2019"]
[Site "Ekaterinburg"]
[Date "2019.08.06"]
[Round "6.12"]
[White "Cherniaev, Alexander"]
[Black "Drygalov, Sergey"]
[Result "1/2-1/2"]
[ECO "B22"]
[WhiteElo "2396"]
[BlackElo "2492"]
[Annotator "ChessBase"]
[PlyCount "98"]
[EventDate "2019.07.31"]
[EventType "swiss"]
[EventCountry "RUS"]
[SourceTitle "playchess.com"]
[Source "ChessBase"]
[SourceQuality "1"]
[TimeControl "5400+30"]

1. e4 {[%emt 0:00:00]} c5 {[%emt 0:00:00]} 2. c3 {[%emt 0:00:00]} Nf6 {[%emt 0:00:00]} 3. e5 {[%emt 0:00:00]} Nd5 {[%emt 0:00:17]} 4. Nf3 {[%emt 0:00:13]} Nc6 {[%emt 0:02:24]} 5. Bc4 {[%emt 0:01:07]} Nb6 {[%emt 0:01:06]} 6. Bb3 {[%emt 0:00:10]} c4 {[%emt 0:02:07]} 7. Bc2 {[%emt 0:00:06]} d6 {[%emt 0:01:05]} 8. exd6 {[%emt 0:00:34]} Qxd6 {[%emt 0:00:27]} 9. O-O {[%emt 0:03:25]} Bg4 {[%emt 0:04:31]} 10. Re1 {[%emt 0:02:27]} e6 {[%emt 0:13:01]} 11. b3 {[%emt 0:01:14]} Be7 {[%emt 0:11:15]} 12. Na3 {[%emt 0:04:48]} cxb3 {[%emt 0:04:19]} 13. axb3 {[%emt 0:00:33]} Nd5 {[%emt 0:01:16]} 14. Nc4 {[%emt 0:05:53]} Qc7 {[%emt 0:01:15]} 15. Be4 {[%emt 0:08:11]} O-O {[%emt 0:05:18]} 16. Bxd5 {[%emt 0:00:54]} exd5 {[%emt 0:00:00]} 17. Ne3 {[%emt 0:00:37]} Be6 {[%emt 0:00:07]} 18. Ba3 {[%emt 0:00:00]} Bxa3 {[%emt 0:01:59]} 19. Rxa3 {[%emt 0:00:00]} Qd6 {[%emt 0:01:16]} 20. Ra4 {[%emt 0:12:54]} Rfe8 {[%emt 0:11:08]} 21. Qc2 {[%emt 0:08:38]} h6 {[%emt 0:01:19]} 22. Nd4 {[%emt 0:01:52]} Bd7 {[%emt 0:00:58]} 23. Rea1 {[%emt 0:00:00]} a6 {[%emt 0:03:22]} 24. Nxc6 {[%emt 0:02:18]} Bxc6 {[%emt 0:00:00]} 25. Rg4 {[%emt 0:00:36]} Qf6 {[%emt 0:01:00]} 26. f3 {[%emt 0:01:56]} Re5 {[%emt 0:04:19]} 27. Rd4 {[%emt 0:01:29]} Qe6 {[%emt 0:04:05]} 28. Rf1 {[%emt 0:08:07]} Re8 {[%emt 0:02:03]} 29. Rf2 {[%emt 0:00:17]} Bb5 {[%emt 0:06:02]} 30. h3 {[%emt 0:06:08]} h5 {[%emt 0:01:33]} 31. h4 {[%emt 0:00:00]} Qf6 {[%emt 0:01:04]} 32. g3 {[%emt 0:07:06]} Qe6 {[%emt 0:00:26]} 33. Rg2 {[%emt 0:00:24]} Rc8 {[%emt 0:07:31]} 34. Qc1 {[%emt 0:04:21]} Re8 {[%emt 0:03:58]} 35. Kf2 {[%emt 0:03:12]} a5 {[%emt 0:00:59]} 36. Kg1 {[%emt 0:04:27]} Bc6 {[%emt 0:00:28]} 37. Qc2 {[%emt 0:00:42]} b5 {[%emt 0:01:11]} 38. g4 {[%emt 0:00:11]} g6 {[%emt 0:01:11]} 39. f4 {[%emt 0:03:40]} Rxe3 {[%emt 0:00:47]} 40. dxe3 {[%emt 0:00:13]} Qxe3+ {[%emt 0:00:07]} 41. Qf2 {[%emt 0:00:20]} Qc1+ {[%emt 0:03:10]} 42. Kh2 {[%emt 0:00:02]} Re1 {[%emt 0:00:14]} 43. Qd2 {[%emt 0:01:37]} hxg4 {[%emt 0:01:18]} 44. Qxc1 {[%emt 0:00:00]} Rxc1 {[%emt 0:00:00]} 45. Rxg4 {[%emt 0:00:00]} Rxc3 {[%emt 0:00:00]} 46. Rg3 {[%emt 0:00:31]} Rc2+ {[%emt 0:00:10]} 47. Rg2 {[%emt 0:00:10]} Rc3 {[%emt 0:00:35]} 48. Rg3 {[%emt 0:00:32]} Rc2+ {[%emt 0:00:54]} 49. Rg2 {[%emt 0:00:00]} Rc3 {[%emt 0:00:34]} 1/2-1/2

[Event "Eurasia Open Cup 2019"]
[Site "Ekaterinburg"]
[Date "2019.08.06"]
[Round "6.13"]
[White "Fotin, Vladimir"]
[Black "Balashov, Yuri S"]
[Result "1-0"]
[ECO "D41"]
[WhiteElo "2368"]
[BlackElo "2474"]
[Annotator "ChessBase"]
[PlyCount "118"]
[EventDate "2019.07.31"]
[EventType "swiss"]
[EventCountry "RUS"]
[SourceTitle "playchess.com"]
[Source "ChessBase"]
[SourceQuality "1"]
[TimeControl "5400+30"]

1. Nf3 {[%emt 0:00:00]} Nf6 {[%emt 0:00:00]} 2. c4 {[%emt 0:00:00]} e6 {[%emt 0:00:00]} 3. g3 {[%emt 0:00:00]} d5 {[%emt 0:00:00]} 4. Bg2 {[%emt 0:00:00]} c5 {[%emt 0:03:07]} 5. cxd5 {[%emt 0:01:05]} Nxd5 {[%emt 0:00:42]} 6. O-O {[%emt 0:00:25]} Nc6 {[%emt 0:00:00]} 7. Nc3 {[%emt 0:02:50]} Be7 {[%emt 0:00:00]} 8. d4 {[%emt 0:00:17]} O-O {[%emt 0:00:28]} 9. Nxd5 {[%emt 0:00:48]} exd5 {[%emt 0:00:08]} 10. dxc5 {[%emt 0:00:24]} Bxc5 {[%emt 0:00:00]} 11. Bg5 {[%emt 0:02:54]} f6 {[%emt 0:00:40]} 12. Bf4 {[%emt 0:02:54]} Be6 {[%emt 0:00:40]} 13. Rc1 {[%emt 0:22:51]} Bb6 {[%emt 0:05:29]} 14. a3 {[%emt 0:07:22]} Qe7 {[%emt 0:09:10]} 15. h3 {[%emt 0:08:43]} Rad8 {[%emt 0:01:06]} 16. Ne1 {[%emt 0:01:47]} Bf5 {[%emt 0:05:43]} 17. Nd3 {[%emt 0:01:19]} Be4 {[%emt 0:02:01]} 18. b4 {[%emt 0:07:59]} Rfe8 {[%emt 0:09:45]} 19. Re1 {[%emt 0:05:31]} Bxg2 {[%emt 0:00:54]} 20. Kxg2 {[%emt 0:00:05]} Qe4+ {[%emt 0:05:32]} 21. f3 {[%emt 0:01:23]} Qg6 {[%emt 0:08:20]} 22. Nc5 {[%emt 0:07:54]} Qf7 {[%emt 0:00:00]} 23. Qd3 {[%emt 0:04:41]} Ne5 {[%emt 0:06:05]} 24. Bxe5 {[%emt 0:01:24]} Rxe5 {[%emt 0:01:36]} 25. Qd4 {[%emt 0:04:50]} a5 {[%emt 0:02:48]} 26. Rcd1 {[%emt 0:01:25]} h5 {[%emt 0:01:57]} 27. h4 {[%emt 0:03:07]} Re7 {[%emt 0:01:40]} 28. Rd2 {[%emt 0:01:47]} Qg6 {[%emt 0:02:33]} 29. Qf2 {[%emt 0:02:12]} Qe8 {[%emt 0:01:40]} 30. Rd3 {[%emt 0:04:12]} axb4 {[%emt 0:04:21]} 31. axb4 {[%emt 0:00:02]} Ba7 {[%emt 0:01:21]} 32. Kf1 {[%emt 0:01:35]} Bb8 {[%emt 0:00:40]} 33. Kg2 {[%emt 0:00:21]} Qb5 {[%emt 0:00:48]} 34. Rd4 {[%emt 0:02:01]} Be5 {[%emt 0:00:45]} 35. Rd3 {[%emt 0:01:13]} Qxb4 {[%emt 0:02:46]} 36. Red1 {[%emt 0:00:53]} b6 {[%emt 0:03:26]} 37. Nb3 {[%emt 0:00:00]} Rde8 {[%emt 0:00:25]} 38. e3 {[%emt 0:00:56]} Bc3 {[%emt 0:02:05]} 39. Nc1 {[%emt 0:00:46]} Qb2 {[%emt 0:01:37]} 40. Ne2 {[%emt 0:00:29]} d4 {[%emt 0:03:45]} 41. e4 {[%emt 0:00:56]} f5 {[%emt 0:00:40]} 42. Nxc3 {[%emt 0:00:33]} Qxf2+ {[%emt 0:01:48]} 43. Kxf2 {[%emt 0:00:06]} dxc3 {[%emt 0:00:08]} 44. Rxc3 {[%emt 0:00:15]} fxe4 {[%emt 0:00:00]} 45. f4 {[%emt 0:00:44]} Ra8 {[%emt 0:01:18]} 46. Rb1 {[%emt 0:00:47]} Ra2+ {[%emt 0:00:50]} 47. Ke3 {[%emt 0:00:05]} Rg2 {[%emt 0:00:48]} 48. Kd4 {[%emt 0:00:05]} Rd2+ {[%emt 0:00:43]} 49. Ke3 {[%emt 0:00:03]} Rg2 {[%emt 0:01:58]} 50. Kd4 {[%emt 0:00:04]} e3 {[%emt 0:01:08]} 51. Rxe3 {[%emt 0:00:12]} Rxe3 {[%emt 0:00:12]} 52. Kxe3 {[%emt 0:00:35]} Rxg3+ {[%emt 0:00:05]} 53. Ke4 {[%emt 0:00:00]} Rg6 {[%emt 0:01:08]} 54. Kf5 {[%emt 0:02:13]} Rc6 {[%emt 0:01:35]} 55. Kg5 {[%emt 0:00:34]} g6 {[%emt 0:00:28]} 56. f5 {[%emt 0:00:04]} gxf5 {[%emt 0:00:08]} 57. Kxh5 {[%emt 0:00:04]} f4 {[%emt 0:00:38]} 58. Kg4 {[%emt 0:00:37]} Rf6 {[%emt 0:00:00]} 59. Kf3 {[%emt 0:00:00]} Kf7 {[%emt 0:00:54]} 1-0

[Event "Eurasia Open Cup 2019"]
[Site "Ekaterinburg"]
[Date "2019.08.06"]
[Round "6.14"]
[White "Guseva, Marina"]
[Black "Khanin, Semen"]
[Result "0-1"]
[ECO "D80"]
[WhiteElo "2379"]
[BlackElo "2517"]
[Annotator "ChessBase"]
[PlyCount "90"]
[EventDate "2019.07.31"]
[EventType "swiss"]
[EventCountry "RUS"]
[SourceTitle "playchess.com"]
[Source "ChessBase"]
[SourceQuality "1"]
[TimeControl "5400+30"]

1. d4 {[%emt 0:00:00]} Nf6 {[%emt 0:00:00]} 2. c4 {[%emt 0:00:00]} g6 {[%emt 0:00:00]} 3. Nc3 {[%emt 0:00:00]} d5 {[%emt 0:00:00]} 4. Bg5 {[%emt 0:01:24]} c5 {[%emt 0:00:31]} 5. Bxf6 {[%emt 0:01:39]} exf6 {[%emt 0:00:04]} 6. cxd5 {[%emt 0:00:00]} Qb6 {[%emt 0:00:04]} 7. Nf3 {[%emt 0:06:20]} cxd4 {[%emt 0:20:32]} 8. Nxd4 {[%emt 0:00:21]} Qxb2 {[%emt 0:00:36]} 9. Qc1 {[%emt 0:06:59]} Qb4 {[%emt 0:17:46]} 10. e3 {[%emt 0:08:51]} Qa5 {[%emt 0:04:36]} 11. Bb5+ {[%emt 0:02:45]} Nd7 {[%emt 0:03:44]} 12. O-O {[%emt 0:00:49]} a6 {[%emt 0:03:49]} 13. Bxd7+ {[%emt 0:21:49]} Bxd7 {[%emt 0:00:30]} 14. Ne4 {[%emt 0:00:34]} Be7 {[%emt 0:02:54]} 15. d6 {[%emt 0:00:17]} Qe5 {[%emt 0:10:01]} 16. Qb1 {[%emt 0:02:30]} f5 {[%emt 0:05:24]} 17. Qxb7 {[%emt 0:13:28]} Qxe4 {[%emt 0:00:06]} 18. Qxe4 {[%emt 0:00:03]} fxe4 {[%emt 0:00:04]} 19. dxe7 {[%emt 0:00:02]} Kxe7 {[%emt 0:00:06]} 20. Rfb1 {[%emt 0:02:05]} Rab8 {[%emt 0:00:21]} 21. Kf1 {[%emt 0:00:27]} Rhc8 {[%emt 0:05:33]} 22. Ke2 {[%emt 0:00:19]} Kd6 {[%emt 0:03:51]} 23. Kd2 {[%emt 0:05:37]} Be6 {[%emt 0:01:23]} 24. a3 {[%emt 0:03:43]} Bc4 {[%emt 0:01:06]} 25. Rb4 {[%emt 0:02:20]} a5 {[%emt 0:00:36]} 26. Rxb8 {[%emt 0:01:04]} Rxb8 {[%emt 0:00:04]} 27. Rc1 {[%emt 0:00:07]} Kd5 {[%emt 0:01:04]} 28. Kc3 {[%emt 0:04:35]} Bd3 {[%emt 0:02:59]} 29. Rd1 {[%emt 0:00:06]} g5 {[%emt 0:02:48]} 30. h4 {[%emt 0:04:12]} Rc8+ {[%emt 0:04:13]} 31. Kb3 {[%emt 0:00:12]} Rb8+ {[%emt 0:06:22]} 32. Kc3 {[%emt 0:00:04]} f6 {[%emt 0:02:20]} 33. hxg5 {[%emt 0:05:40]} fxg5 {[%emt 0:00:00]} 34. Rh1 {[%emt 0:00:03]} Rc8+ {[%emt 0:00:04]} 35. Kb3 {[%emt 0:00:56]} Rf8 {[%emt 0:00:33]} 36. Rh5 {[%emt 0:01:29]} h6 {[%emt 0:00:05]} 37. Rxh6 {[%emt 0:04:08]} Rxf2 {[%emt 0:00:33]} 38. Kc3 {[%emt 0:01:51]} Rxg2 {[%emt 0:00:00]} 39. Rf6 {[%emt 0:00:03]} a4 {[%emt 0:01:53]} 40. Rf5+ {[%emt 0:00:40]} Kd6 {[%emt 0:00:00]} 41. Ra5 {[%emt 0:00:00]} g4 {[%emt 0:00:14]} 42. Rxa4 {[%emt 0:00:17]} g3 {[%emt 0:00:41]} 43. Ra5 {[%emt 0:00:25]} Rg1 {[%emt 0:00:11]} 44. Rg5 {[%emt 0:00:00]} g2 {[%emt 0:00:04]} 45. Nf5+ {[%emt 0:00:55]} Ke5 {[%emt 0:01:05]} 0-1